Cogmind - Beta 10.2 @@@ ROGUE MODE // 2020.12.19 @ 18:48:21 Player: CrossedViper Result: Destroyed by 8R-AWN with 8R-AWN's Boregun Performance ------------- Evolutions (0) 0 Regions Visited (3) 600 Robots Destroyed (4) 20 Value Destroyed (121) 121 Prototype IDs (23) 460 Alien Tech Used (0) 0 Bonus (102) 102 TOTAL SCORE: 1303 Bonus ------- Aligned with FarCom 300 Friendly Fire -198 Cogmind --------- Core Integrity 0/250 Matter 113/300 Energy 100/100 System Corruption 0% Temperature Cool (0) Movement Core (350) Ox6 Location -10/Exiles Parts ------- > --- POWER (1) -------- (None) > --- PROPULSION (2) --- (None) > --- UTILITY (2) ------ Large Storage Unit > --- WEAPON (2) ------- Light Assault Rifle Mining Claw > --- INVENTORY (10) --- (None) Peak State ------------ > --- POWER ------------ Light Ion Engine > --- PROPULSION ------- Light Treads Light Treads > --- UTILITY ---------- Cloak of Protection Core Shielding > --- WEAPON ----------- Heavy Battle Rifle Mining Claw > --- INVENTORY -------- Armored Treads Light Armor Plating Light Assault Rifle Grenade Launcher [Rating: 17] Favorites ----------- Power Light Ion Engine Engine Light Ion Engine Propulsion Aluminum Leg Treads Light Treads Leg Aluminum Leg Utility Large Storage Unit Device Cloak of Protection Storage Large Storage Unit Protection Core Shielding Weapon Light Assault Rifle Energy Gun Small Laser Energy Cannon EM Pulse Cannon Ballistic Gun Light Assault Rifle Launcher Shock Bomb Launcher Slashing Weapon Mining Claw Build | -11 -10 -10 -10 ------- Run | Scr Mat Min Exi Slots Evolved . | . . . . Power . | . . . . Propulsion . | . . . . Utility . | . . . . Weapon . | . . . . Parts Attached 28 | . 5 5 18 Power 3 | . 1 2 . Engine 3 | . 1 2 . Core . | . . . . Reactor . | . . . . Propulsion 5 | . 1 1 3 Treads 3 | . . . 3 Leg 2 | . 1 1 . Wheel . | . . . . Hover . | . . . . Flight . | . . . . Utility 8 | . 2 . 6 Device 1 | . . . 1 Storage 4 | . 2 . 2 Processor . | . . . . Hackware . | . . . . Protection 3 | . . . 3 Artifact . | . . . . Weapon 12 | . 1 2 9 Energy Gun 1 | . 1 . . Energy Cannon 1 | . . 1 . Ballistic Gun 6 | . . 1 5 Ballistic Cannon . | . . . . Launcher 2 | . . . 2 Special Weapon . | . . . . Impact Weapon . | . . . . Slashing Weapon 2 | . . . 2 Piercing Weapon . | . . . . Special Melee Weapon . | . . . . Unidentified Prototypes . | . . . . Parts Lost 14 | . 1 2 11 Power 2 | . . 1 1 Propulsion 4 | . . 1 3 Utility 3 | . . . 3 Weapon 5 | . 1 . 4 Highest Loss Streak 11 | . 1 2 11 Average Slot Usage (%) 96 | . 98 99 92 Engine 13 | . 14 13 12 Treads 2 | . . . 6 Leg 24 | . 28 28 19 Device 1 | . . . 2 Storage 25 | . 27 28 21 Energy Gun 3 | . 13 2 . Energy Cannon 5 | . . 5 9 Ballistic Gun 16 | . 14 20 12 Slashing Weapon 1 | . . . 4 Naked Turns . | . . . . Heaviest Build 43 | 9 39 42 43 Greatest Support 40 | 20 20 20 40 Greatest Overweight (x) 2 | . 1 2 2 Average Overweight (x) 1 | . . 1 1 Largest Inventory Capacity 16 | 6 16 16 16 Average Capacity 14 | 6 15 16 13 Most Carried 16 | 6 15 16 16 Average Carried 13 | 6 10 15 11 Final Capacity 16 | 6 16 16 10 Final Carried 15 | 6 15 15 . Class Distribution -------------------- 100% | Mutant Dominant Class ---------------- Mutant | -10/Materials Mutant | -10/Mines Mutant | -10/Exiles Resources | -11 -10 -10 -10 ----------- Run | Scr Mat Min Exi Matter Collected 328 | 200 60 68 . Remotely . | . . . . Salvage Created 314 | . 139 127 48 Parts 9 | . 8 1 . Haulers Intercepted . | . . . . Recyclers Shooed . | . . . . Parts Field Recycled . | . . . . Retrieved Matter . | . . . . Parts Self-Destructed . | . . . . Prevented . | . . . . Kills | -11 -10 -10 -10 ------- Run | Scr Mat Min Exi Combat Hostiles Destroyed 12 | . 3 4 5 Guns 8 | . 3 1 4 Cannons 3 | . . 3 . AOE 1 | . . . 1 Classes Destroyed 3 | . 1 2 . Recycler 1 | . . 1 . Grunt 3 | . 3 . . Assembled 9 | . . 4 5 Best Kill Streak 5 | . 2 2 5 Combat Bots Only 5 | . 2 2 5 Max Kills in Single Turn 1 | . 1 1 1 Gunslinging . | . . . . Exploded 1 | . . . 1 Melee . | . . . . Uniques/NPCs Destroyed . | . . . . Combat | -11 -10 -10 -10 -------- Run | Scr Mat Min Exi Damage Taken 2034 | . 254 211 1569 Core 259 | . 22 . 237 Absorbed by Shields . | . . . . Core Remaining (%) 100 | 100 . . . Volleys Fired 52 | . 16 18 18 Largest 2 | . 2 2 2 Hottest 83 | . 60 83 53 Shots Fired 83 | . 30 34 19 Gun 71 | . 30 26 15 Cannon 8 | . . 8 . Launcher 4 | . . . 4 Special . | . . . . Kinetic 57 | . 16 26 15 Thermal 14 | . 14 . . Explosive 3 | . . . 3 Electromagnetic 9 | . . 8 1 Robot Hit Streak 6 | . 5 6 6 Robot Miss Streak 3 | . 2 3 2 Penetration Max . | . . . . Secondary Targets . | . . . . Shots Hit Robots 68 | . 19 19 30 Core Hits 32 | . 9 10 13 Critical Hits 1 | . . . 1 Critical Kills . | . . . . Critical Parts Destroyed 1 | . . . 1 Melee Attacks 24 | . . . 24 Impact . | . . . . Slashing 24 | . . . 24 Piercing . | . . . . Sneak Attacks 1 | . . . 1 Combat Hostiles . | . . . . Follow-up Attacks . | . . . . Damage Inflicted 1205 | . 159 247 799 Guns 415 | . 159 128 128 Cannons 119 | . . 119 . Explosions 215 | . . . 215 Melee 456 | . . . 456 Ramming . | . . . . Kinetic 307 | . 51 128 128 Thermal 108 | . 108 . . Explosive 188 | . . . 188 Electromagnetic 146 | . . 119 27 Impact . | . . . . Slashing 456 | . . . 456 Piercing . | . . . . Highest Corruption . | . . . . Average Corruption . | . . . . Corruption Purged . | . . . . Overload Shots . | . . . . Overflow Damage 18 | . . . 18 Projectiles . | . . . . Explosions 12 | . . . 12 Melee 6 | . . . 6 Knockbacks . | . . . . Impact . | . . . . Kinetic . | . . . . Secondary . | . . . . Self-Inflicted Damage . | . . . . Shots . | . . . . Rammed . | . . . . Targets Rammed . | . . . . Kicked . | . . . . Crushed . | . . . . Highest Temperature 86 | . 86 66 8 Average Temperature 31 | . 34 28 6 Received Heat Transfer 144 | . 144 . . Siege Activations . | . . . . Robots Corrupted . | . . . . Combat Hostiles . | . . . . Parts Fried . | . . . . Impact Corruptions . | . . . . Robots Melted . | . . . . Combat Hostiles . | . . . . Parts Melted . | . . . . Heat Transferred 250 | . 250 . . Parts Sabotaged . | . . . . Parts Stolen . | . . . . Parts Stripped . | . . . . Power Chain Reactions . | . . . . Missiles Intercepted . | . . . . Alert | -11 -10 -10 -10 ------- Run | Scr Mat Min Exi Peak Influence 130 | . 130 50 . Initial 50 | . . 50 . Average 33 | . 62 21 . Maximum Alert Level . | . . . . Low Security (%) 100 | 100 100 100 . Level 1 . | . . . . Level 2 . | . . . . Level 3 . | . . . . Level 4 . | . . . . Level 5 . | . . . . High Security . | . . . . Max Security . | . . . . Squads Dispatched 4 | . 3 1 . Investigation 1 | . . 1 . Extermination . | . . . . Reinforcement 3 | . 3 . . Assault . | . . . . Garrison . | . . . . Intercept . | . . . . Construction Impeded . | . . . . Haulers Reinforced . | . . . . Stealth | -11 -10 -10 -10 --------- Run | Scr Mat Min Exi Distress Signals 1 | . . 1 . Communications Jammed . | . . . . Distress Signals . | . . . . Times Spotted 20 | . 9 3 8 Peak Tracking Total 9 | . 2 2 9 Tactical Retreats 1 | . . 1 . Traps | -11 -10 -10 -10 ------- Run | Scr Mat Min Exi Traps Triggered . | . . . . Indirectly . | . . . . Trap Hack Attempts . | . . . . Triggered . | . . . . Disarmed . | . . . . Reprogrammed . | . . . . Reused . | . . . . Traps Extracted . | . . . . Installed . | . . . . Triggered . | . . . . Machines | -11 -10 -10 -10 ---------- Run | Scr Mat Min Exi Machines Disabled 2 | . . . 2 Max in Single Turn 1 | . . . 1 Machines Sabotaged . | . . . . Garrisons Compromised . | . . . . Overloaded Fab Kills . | . . . . Fab Network Shutdowns . | . . . . Hacking | -11 -10 -10 -10 --------- Run | Scr Mat Min Exi Machines Accessed 2 | . . 1 1 Terminals . | . . . . Fabricators . | . . . . Repair Stations . | . . . . Recycling Units . | . . . . Scanalyzers . | . . . . Garrison Access . | . . . . Total Hacks 2 | . . 1 1 Successful 2 | . . 1 1 Failed . | . . . . Catastrophic . | . . . . Database Lockouts . | . . . . Manual 1 | . . . 1 Terminals . | . . . . Fabricators . | . . . . Repair Stations . | . . . . Recycling Units . | . . . . Scanalyzers . | . . . . Garrison Access . | . . . . Terminal Hacks 2 | . . 1 1 Open Door 1 | . . 1 . EX-Prototype ID Bank 1 | . . . 1 Fabricator Hacks . | . . . . Repair Station Hacks . | . . . . Recycling Unit Hacks . | . . . . Scanalyzer . | . . . . Garrison Access Hacks . | . . . . Unauthorized Hacks . | . . . . Terminals . | . . . . Fabricators . | . . . . Repair Stations . | . . . . Recycling Units . | . . . . Scanalyzers . | . . . . Garrison Access . | . . . . Data Cores Recovered . | . . . . Used . | . . . . Hacking Detections . | . . . . Full Trace Events . | . . . . Feedback Events . | . . . . Feedback Blocked . | . . . . Robot Schematics Acquired . | . . . . Robots Built . | . . . . Matter . | . . . . Time . | . . . . Total Robot Build Rating . | . . . . Part Schematics Acquired . | . . . . Parts Built . | . . . . Matter . | . . . . Time . | . . . . Total Part Build Rating . | . . . . Parts Repaired . | . . . . Time . | . . . . Parts Recycled . | . . . . Recycled Matter . | . . . . Retrieved Matter . | . . . . Retrieved Components . | . . . . Parts Scanalyzed . | . . . . Part Schematics Acquired . | . . . . Parts Damaged . | . . . . Bothacking | -11 -10 -10 -10 ------------ Run | Scr Mat Min Exi Used RIF Installer . | . . . . Robots Hacked . | . . . . Non-combat . | . . . . Combat . | . . . . Robot Hacks Applied . | . . . . Relay Couplers Released . | . . . . Robots Rewired . | . . . . Allies Hacked . | . . . . Hacks Repelled . | . . . . Allies | -11 -10 -10 -10 -------- Run | Scr Mat Min Exi Total Allies 3 | . . 3 . Largest Group 3 | . . 3 3 Highest-Rated Group 40 | . . 40 40 Highest-Rated Ally 16 | . . 16 16 Total Orders 1 | . . . 1 STAY 1 | . . . 1 Ally Attacks 14 | . . . 14 Total Damage 184 | . . . 184 Kills . | . . . . Allies Corrupted 1 | . . . 1 Allies Melted . | . . . . Intel | -11 -10 -10 -10 ------- Run | Scr Mat Min Exi Robot Analysis Total . | . . . . Derelict Logs Recovered 2 | . . 2 . Drone Launches . | . . . . Drone Recoveries . | . . . . Exploration | -11 -10 -10 -10 ------------- Run | Scr Mat Min Exi Turns Passed 2195 | 3 398 945 849 Spaces Moved 1177 | 3 229 550 395 Core . | . . . . Treads 80 | . . . 80 Legs 1097 | 3 229 550 315 Wheels . | . . . . Hover . | . . . . Flight . | . . . . Fastest Speed 120 | 120 120 150 160 Average Speed 162 | 120 147 159 176 Slowest Speed 180 | 120 150 180 180 Overloaded Moves . | . . . . Propulsion Burnouts . | . . . . Robots Hopped . | . . . . Cave-ins Triggered . | . . . . Exploration Rate (%) 47 | 2 52 97 40 Regions Visited 3 Branch Regions 2 Pre-discovered Areas 1 | . . 1 . Known Exits Taken . | . . . . Unknown Exits Taken 3 | 1 1 1 . Scrap Searched 3 | . . 3 . Spaces Dug . | . . . . Terrain Destroyed 17 | . . . 17 Melee . | . . . . Projectile . | . . . . AOE 17 | . . . 17 Terrain Rammed . | . . . . Walls Destroyed . | . . . . Machines Disabled . | . . . . Actions | -11 -10 -10 -10 --------- Run | Scr Mat Min Exi Total 1340 | 2 260 590 488 Wait 3 | . 3 . . Move 1174 | 2 228 549 395 Hop . | . . . . Pick Up 32 | . 8 10 14 Fast Attach 8 | . 1 . 7 Attach 11 | . 1 2 8 Detach . | . . . . Swap 9 | . 3 3 3 Drop 27 | . . 8 19 Fire 52 | . 16 18 18 Melee 24 | . . . 24 Ram . | . . . . Kick . | . . . . Crush . | . . . . Escape Stasis . | . . . . Rewire . | . . . . Trap . | . . . . Miscellaneous . | . . . . Route ------- -11/Scrapyard -10/Materials (discovered 2 exits: [*Mat] / *Min) -10/Mines (discovered 2 exits: [*Mat] / *Exi) -10/Exiles History --------- Turn | Location | Event 1 | -11/Scrapyard | Discovered new exit (range 0) 4 | -11/Scrapyard | Entered Materials 203 | -10/Materials | Discovered new exit (range 9) 323 | -10/Materials | Build established: Mutant 374 | -10/Materials | Discovered new exit (range 15) 402 | -10/Materials | Entered Mines 409 | -10/Mines | Met a Derelict bent on vengeance 538 | -10/Mines | Met a Derelict shopkeep closing up shop 646 | -10/Mines | A weapon hastily lodged in a ceiling crevice suddenly fell to the ground 808 | -10/Mines | Learned location of Storage (-8) 824 | -10/Mines | Assembled infested the area 1028 | -10/Mines | Discovered new exit (range 11) 1145 | -10/Mines | Assisted by bots powering up and referring to "LRC-V3" 1338 | -10/Mines | Deemed a non-threat by the Exiles lab entrance 1338 | -10/Mines | Discovered new exit (range 5) 1347 | -10/Mines | Entered Exiles 1347 | -10/Exiles | Accompanied by 3 allies 1570 | -10/Exiles | Met 8R-AWN 1600 | -10/Exiles | Met EX-HEX 1656 | -10/Exiles | Met EX-BIN 1678 | -10/Exiles | Aligned with FarCom system 1680 | -10/Exiles | Given EX-Vault access code 1721 | -10/Exiles | Opened EX-Vault 1735 | -10/Exiles | Found Cloak of Protection 1772 | -10/Exiles | Warned to stay clear of 0b10 Research branches 2064 | -10/Exiles | Attacked by the Exiles 2129 | -10/Exiles | Core integrity fell below 50% 2146 | -10/Exiles | Core integrity fell below 20% 2196 | -10/Exiles | Destroyed by 8R-AWN with 8R-AWN's Boregun Last Messages --------------- 02170_ HV Slug penetrates Wall. 02170_ Penetrated by HV Slug. 02170_ HV Slug penetrates Wall. 02175_ Penetrated by HV Slug. 02175_ HV Slug penetrates Wall. 02175_ Penetrated by HV Slug. 02175_ HV Slug penetrates Wall. 02179_ HV Slug penetrates Machine. 02179_ HV Slug penetrates Wall. 02183_ HV Slug penetrates Earth. 02183_ Penetrated by HV Slug. 02183_ HV Slug penetrates Wall. 02187_ HV Slug penetrates Machine. 02187_ HV Slug penetrates Earth. 02187_ HV Slug penetrates Wall. 02192_ Penetrated by HV Slug. 02192_ HV Slug penetrates Wall. 02192_ Penetrated by HV Slug. 02192_ HV Slug penetrates Wall. 02196_ Penetrated by HV Slug. Map ----- +----------------------------------------------------+ | """#?????????????????????????????????????????????? | | """#?????????????????????????????????????????????? | | """#?????????????????????????????????????????????? | | """#?????????????????????????????????????????????? | | """#?????????????????????????????????????????????? | | """#?????????????????????????????????????????????? | | """#?????????????????????????????????????????????? | | """#?????????????????????????????????????????????? | | """#?????????????????????????????????????????????? | | """"?????????????????????????????????????????????? | | """#?????????????????????????????????????????????? | | """"?????????????????????????????????????????????? | | #?????????????????????????????????????????????? | | """#?????????????????????????????????????????????? | | ####?????????????????????????????????????????????? | | ?????????????????????????????????????????????????? | | ?????????????????????????????????????????????????? | | ?????????????????????????????????????????????????? | | ##########???????????????????????????????????? ? | | """""""""##??????????????????????????????????? | | " """ """"##?????????????????????????????????# # | | "" " #???????????????????????????????## # | | " """#???????????????????????????????# | | " "#???????????#####???????????????# | | " "##?????????##"g]#??????????????## | | ""###??????## @]###???????????## #? | | """#????#### !%;#???????????# #? | | "#???## * ;##????????### #?? | | ##??# ########## #?? | | ## # #""""## #??? | | [ ##?? | | %% #; === #?? | | %% ;## = ##? | | "# #" ;;#; ## | | ## ######; #;## | | ## ###?#??????# #? ##### | | ####????????????# #??????### | | " ##????????????????##????????### | | """ ""#?????????????????????????????### | | ""#" "##??????????????????????????????#" | | ""?##"""""""##???????????????????????????????#### | | "????#########???????????????????????????????????# | | ?????????????????????????????????????????????????# | | ?????????????????????????????????????????????????? | | ?????????????????????????????????????????????????? | | ?????????????????????????????????????????????????? | | ?????????????????????????????????????????????????? | | ?????????????????????????????????????????????????? | | ?????????????????????????????????????????????????? | | ?????????????????????????????????????????????????? | +----------------------------------------------------+ Best States ------------- Heat Dissipation 25 Energy Generation 10 Energy Capacity 250 Matter Stores 300 Matter Capacity 300 Sight Range 16 Terrain Scan Density 10 Armor Coverage 150 Core Shielding 20 Evasion (%) 40 Recoil Reduction 2 Item Schematics ----------------- None Robot Schematics ------------------ None Fabricated ------------ Nothing Alien Tech Used ----------------- None Achievements -------------- None Challenges ------------ None Game ------ Seed DecoderCryofiberShifter Manual? 0 Play Time 00:14:29 Cumulative 158.6 hours Start 2020.12.19 @ 18:33:26 End 2020.12.19 @ 18:48:21 Sessions 1 Manual Loads 0 Difficulty Rogue Special Mode None Game No. 161 Rogue 154 Adventurer 0 Explorer 7 Win Type - Total 3 Types 0/0/3/0/0/0/0/0/0 Lore% 59 Gallery% 87 Achievement% 64 Wizard Run 0 Options --------- ASCII 0 Keyboard 0 Movement Mouse Keybinds 0 Fullscreen 1 Font 18/X11 Map View 76x50 Tactical HUD 1 Map Filters NONE Filters NONE Steam 1 RUN: d074f33a-8386-475c-8e23-0204cb5870cc